[Event "Late-Titled-Tuesday-Blitz-October-10-2023"]
[Site "Chess.com"]
[Date "2023.10.10"]
[Round "1"]
[White "Qvalda"]
[Black "greekplayer1"]
[Result "1-0"]
[WhiteElo "2386"]
[BlackElo "2668"]
[TimeControl "180+1"]
[EndTime "14:02:18 PDT"]
[Termination "Qvalda won by resignation"]

1. Nf3 {[%clk 0:03:00.9]} 1... Nf6 {[%clk 0:02:57.4]} 2. g3 {[%clk 0:02:59.8]}
2... d5 {[%clk 0:02:55.1]} 3. Bg2 {[%clk 0:02:54.6]} 3... Nc6 {[%clk 0:02:55.2]}
4. d4 {[%clk 0:02:53.3]} 4... Bg4 {[%clk 0:02:55.7]} 5. O-O {[%clk 0:02:52.1]}
5... Qd7 {[%clk 0:02:52.6]} 6. c4 {[%clk 0:02:52.1]} 6... dxc4 {[%clk
0:02:53.1]} 7. Qa4 {[%clk 0:02:45]} 7... O-O-O {[%clk 0:02:48]} 8. Ne5 {[%clk
0:02:26.9]} 8... Nxe5 {[%clk 0:02:45.1]} 9. Qxa7 {[%clk 0:02:26.2]} 9... Qxd4
{[%clk 0:02:37.5]} 10. Bxb7+ {[%clk 0:02:21.3]} 10... Kd7 {[%clk 0:02:37.7]} 11.
Qxd4+ {[%clk 0:02:22.2]} 11... Ke6 {[%clk 0:02:35.5]} 12. Qc5 {[%clk 0:02:14.2]}
12... h5 {[%clk 0:02:18]} 13. Bf4 {[%clk 0:02:03.3]} 1-0

[Event "Late-Titled-Tuesday-Blitz-October-10-2023"]
[Site "Chess.com"]
[Date "2023.10.10"]
[Round "1"]
[White "GothamChess"]
[Black "Vegan4future"]
[Result "1-0"]
[WhiteElo "2744"]
[BlackElo "2408"]
[TimeControl "180+1"]
[EndTime "14:02:28 PDT"]
[Termination "GothamChess won by resignation"]

1. e4 {[%clk 0:02:58.2]} 1... e5 {[%clk 0:02:53.8]} 2. Nc3 {[%clk 0:02:58.2]}
2... Nf6 {[%clk 0:02:52.9]} 3. f4 {[%clk 0:02:56.2]} 3... d5 {[%clk 0:02:52.6]}
4. fxe5 {[%clk 0:02:56.6]} 4... Nxe4 {[%clk 0:02:52.6]} 5. Qf3 {[%clk
0:02:57.1]} 5... f5 {[%clk 0:02:34.7]} 6. d3 {[%clk 0:02:55.1]} 6... Nxc3 {[%clk
0:02:33.7]} 7. bxc3 {[%clk 0:02:55.1]} 7... Be6 {[%clk 0:02:33.2]} 8. Rb1 {[%clk
0:02:49.1]} 8... b6 {[%clk 0:02:29.3]} 9. d4 {[%clk 0:02:46.3]} 9... Nd7 {[%clk
0:02:26.4]} 10. Nh3 {[%clk 0:02:43.5]} 10... Be7 {[%clk 0:02:25.9]} 11. Nf4
{[%clk 0:02:43.4]} 11... Nf8 {[%clk 0:02:25]} 12. Nxe6 {[%clk 0:02:40.8]} 12...
Nxe6 {[%clk 0:02:25.9]} 13. Bb5+ {[%clk 0:02:41]} 13... Kf7 {[%clk 0:01:48.7]}
14. Qxf5+ {[%clk 0:02:35.9]} 14... Bf6 {[%clk 0:01:49]} 15. exf6 {[%clk
0:02:34.3]} 15... Qxf6 {[%clk 0:01:49.4]} 16. O-O {[%clk 0:02:28.6]} 1-0

[Event "Late-Titled-Tuesday-Blitz-October-10-2023"]
[Site "Chess.com"]
[Date "2023.10.10"]
[Round "1"]
[White "shimastream"]
[Black "Ykow"]
[Result "1-0"]
[WhiteElo "3002"]
[BlackElo "2505"]
[TimeControl "180+1"]
[EndTime "14:03:12 PDT"]
[Termination "shimastream won by resignation"]

1. g3 {[%clk 0:03:00.5]} 1... e5 {[%clk 0:02:57.4]} 2. Bg2 {[%clk 0:02:59.9]}
2... d5 {[%clk 0:02:57.7]} 3. d3 {[%clk 0:02:58.6]} 3... Nf6 {[%clk 0:02:56.5]}
4. Nf3 {[%clk 0:02:58.9]} 4... Bd6 {[%clk 0:02:56.5]} 5. O-O {[%clk 0:02:58.6]}
5... O-O {[%clk 0:02:56.4]} 6. Nc3 {[%clk 0:02:58.4]} 6... c6 {[%clk 0:02:56.4]}
7. e4 {[%clk 0:02:58.6]} 7... dxe4 {[%clk 0:02:56.7]} 8. dxe4 {[%clk 0:02:58.5]}
8... h6 {[%clk 0:02:54.8]} 9. Nh4 {[%clk 0:02:55.9]} 9... Qc7 {[%clk 0:02:47.8]}
10. h3 {[%clk 0:02:51.1]} 10... a5 {[%clk 0:02:46.3]} 11. a4 {[%clk 0:02:49.3]}
11... Na6 {[%clk 0:02:45.2]} 12. f4 {[%clk 0:02:46.5]} 12... Rd8 {[%clk
0:02:41.9]} 13. Qf3 {[%clk 0:02:43.8]} 13... Nb4 {[%clk 0:02:40.9]} 14. Qf2
{[%clk 0:02:44.1]} 14... Be6 {[%clk 0:02:10.9]} 15. Be3 {[%clk 0:02:43.9]} 15...
Rd7 {[%clk 0:02:08.2]} 16. b3 {[%clk 0:02:37.8]} 16... Re8 {[%clk 0:02:07.4]}
17. f5 {[%clk 0:02:37.9]} 17... c5 {[%clk 0:02:01.3]} 18. fxe6 {[%clk
0:02:35.8]} 18... fxe6 {[%clk 0:02:02.2]} 19. Bxh6 {[%clk 0:02:33.3]} 19... Rf8
{[%clk 0:02:01.8]} 20. Nb5 {[%clk 0:02:14.3]} 20... Qc6 {[%clk 0:01:57.9]} 21.
Nxd6 {[%clk 0:02:14.2]} 21... Qxd6 {[%clk 0:01:55]} 22. Be3 {[%clk 0:02:12.2]}
22... Rdf7 {[%clk 0:01:52.8]} 23. Qe2 {[%clk 0:02:12.4]} 23... Nc6 {[%clk
0:01:44.7]} 24. c3 {[%clk 0:02:11.7]} 1-0

[Event "Late-Titled-Tuesday-Blitz-October-10-2023"]
[Site "Chess.com"]
[Date "2023.10.10"]
[Round "1"]
[White "LoaySameer"]
[Black "HeinichessPY"]
[Result "1-0"]
[WhiteElo "2558"]
[BlackElo "2170"]
[TimeControl "180+1"]
[EndTime "14:03:13 PDT"]
[Termination "LoaySameer won by resignation"]

1. Nf3 {[%clk 0:03:00.9]} 1... Nf6 {[%clk 0:02:31.2]} 2. g3 {[%clk 0:03:00.9]}
2... g6 {[%clk 0:02:20.2]} 3. Bg2 {[%clk 0:03:00.8]} 3... Bg7 {[%clk 0:02:18.9]}
4. O-O {[%clk 0:03:01.1]} 4... O-O {[%clk 0:02:15]} 5. d3 {[%clk 0:03:01]} 5...
d6 {[%clk 0:02:13.3]} 6. e4 {[%clk 0:03:01.2]} 6... c6 {[%clk 0:02:13.2]} 7. c3
{[%clk 0:03:01.7]} 7... Qa5 {[%clk 0:02:13.5]} 8. h3 {[%clk 0:03:01]} 8... Qh5
{[%clk 0:02:12.9]} 9. g4 {[%clk 0:03:00.5]} 9... Qa5 {[%clk 0:02:13.3]} 10. Re1
{[%clk 0:03:00.4]} 10... Qc7 {[%clk 0:02:13.4]} 11. d4 {[%clk 0:03:00.7]} 11...
Nbd7 {[%clk 0:02:13.7]} 12. Bf4 {[%clk 0:02:59.2]} 12... e5 {[%clk 0:02:13.6]}
13. Bg3 {[%clk 0:02:59.8]} 13... Re8 {[%clk 0:02:11.2]} 14. Nbd2 {[%clk
0:03:00.4]} 14... b6 {[%clk 0:02:09.9]} 15. Nc4 {[%clk 0:02:59.7]} 15... Bb7
{[%clk 0:02:09.2]} 16. dxe5 {[%clk 0:03:00.1]} 16... dxe5 {[%clk 0:02:09.3]} 17.
Nfxe5 {[%clk 0:03:00.6]} 17... Nxe5 {[%clk 0:02:08.9]} 18. Bxe5 {[%clk
0:03:01.2]} 18... Qe7 {[%clk 0:02:06.6]} 19. Bd6 {[%clk 0:02:55.3]} 19... Qe6
{[%clk 0:02:04.2]} 20. b3 {[%clk 0:02:55.4]} 20... Rad8 {[%clk 0:02:03.8]} 21.
e5 {[%clk 0:02:55.4]} 21... Nd5 {[%clk 0:02:00.4]} 22. Qc2 {[%clk 0:02:51.7]}
22... b5 {[%clk 0:01:59.7]} 23. Na5 {[%clk 0:02:52.1]} 23... Bc8 {[%clk
0:01:30.4]} 24. Nxc6 {[%clk 0:02:51.5]} 24... Rd7 {[%clk 0:01:21]} 25. Nd4
{[%clk 0:02:50.9]} 25... Rxd6 {[%clk 0:01:18.2]} 26. Nxe6 {[%clk 0:02:51]} 26...
Rdxe6 {[%clk 0:01:18.8]} 27. Bxd5 {[%clk 0:02:51.3]} 27... Rxe5 {[%clk
0:01:18.4]} 28. Rxe5 {[%clk 0:02:51]} 28... Rxe5 {[%clk 0:01:12.6]} 29. Rd1
{[%clk 0:02:51.1]} 1-0

[Event "Late-Titled-Tuesday-Blitz-October-10-2023"]
[Site "Chess.com"]
[Date "2023.10.10"]
[Round "1"]
[White "artin10862"]
[Black "kaanadayhamle"]
[Result "0-1"]
[WhiteElo "2790"]
[BlackElo "2447"]
[TimeControl "180+1"]
[EndTime "14:03:34 PDT"]
[Termination "kaanadayhamle won by resignation"]

1. Nf3 {[%clk 0:02:54.1]} 1... Nf6 {[%clk 0:03:00.3]} 2. c4 {[%clk 0:02:53.7]}
2... e6 {[%clk 0:03:00.6]} 3. Nc3 {[%clk 0:02:54]} 3... d5 {[%clk 0:03:00.9]} 4.
cxd5 {[%clk 0:02:52.9]} 4... exd5 {[%clk 0:03:01.6]} 5. d4 {[%clk 0:02:52.7]}
5... c6 {[%clk 0:03:02.1]} 6. Bf4 {[%clk 0:02:47.7]} 6... Bd6 {[%clk 0:03:01]}
7. Bxd6 {[%clk 0:02:44.1]} 7... Qxd6 {[%clk 0:03:01.9]} 8. e3 {[%clk 0:02:43.1]}
8... O-O {[%clk 0:03:01.8]} 9. Bd3 {[%clk 0:02:42.7]} 9... Bg4 {[%clk 0:03:02]}
10. Qc2 {[%clk 0:02:32.2]} 10... Nbd7 {[%clk 0:02:59.3]} 11. Nh4 {[%clk
0:02:26.1]} 11... Rfe8 {[%clk 0:02:56.1]} 12. h3 {[%clk 0:02:25.7]} 12... Bh5
{[%clk 0:02:54]} 13. O-O {[%clk 0:02:09]} 13... Bg6 {[%clk 0:02:43.8]} 14. Nxg6
{[%clk 0:02:06.9]} 14... hxg6 {[%clk 0:02:44.7]} 15. b4 {[%clk 0:02:06]} 15...
Rac8 {[%clk 0:02:43.8]} 16. Rab1 {[%clk 0:02:00.9]} 16... Nb6 {[%clk 0:02:42.9]}
17. Qe2 {[%clk 0:01:57.6]} 17... Ne4 {[%clk 0:02:37.1]} 18. Rfc1 {[%clk
0:01:54.8]} 18... Rc7 {[%clk 0:02:17.7]} 19. a4 {[%clk 0:01:39.2]} 19... Nxc3
{[%clk 0:02:16]} 20. Rxc3 {[%clk 0:01:40.1]} 20... Nxa4 {[%clk 0:02:16.1]} 21.
Ra3 {[%clk 0:01:40.7]} 21... b5 {[%clk 0:02:15.9]} 22. Bxb5 {[%clk 0:01:40.7]}
22... cxb5 {[%clk 0:02:14.3]} 23. Qxb5 {[%clk 0:01:41.6]} 23... Rec8 {[%clk
0:02:14.7]} 24. g3 {[%clk 0:01:29.2]} 24... Nc3 {[%clk 0:02:11.6]} 25. Qd3
{[%clk 0:01:23.2]} 25... Nxb1 {[%clk 0:02:11.2]} 0-1

[Event "Late-Titled-Tuesday-Blitz-October-10-2023"]
[Site "Chess.com"]
[Date "2023.10.10"]
[Round "1"]
[White "Arimin1329"]
[Black "Arteler"]
[Result "0-1"]
[WhiteElo "2274"]
[BlackElo "2615"]
[TimeControl "180+1"]
[EndTime "14:03:50 PDT"]
[Termination "Arteler won by resignation"]

1. Nf3 {[%clk 0:02:59.3]} 1... d5 {[%clk 0:02:59.4]} 2. d4 {[%clk 0:02:58.8]}
2... c5 {[%clk 0:02:59.7]} 3. c3 {[%clk 0:02:57.2]} 3... Nc6 {[%clk 0:03:00]} 4.
g3 {[%clk 0:02:52.5]} 4... Bg4 {[%clk 0:02:59.5]} 5. Bg2 {[%clk 0:02:52.7]} 5...
e6 {[%clk 0:02:58.2]} 6. O-O {[%clk 0:02:52.1]} 6... Nf6 {[%clk 0:02:58.3]} 7.
Bf4 {[%clk 0:02:51.9]} 7... Be7 {[%clk 0:02:58.5]} 8. Ne5 {[%clk 0:02:50.2]}
8... Nxe5 {[%clk 0:02:57.4]} 9. Bxe5 {[%clk 0:02:49.7]} 9... O-O {[%clk
0:02:58]} 10. Bxf6 {[%clk 0:02:42.5]} 10... Bxf6 {[%clk 0:02:54.6]} 11. dxc5
{[%clk 0:02:42.5]} 11... Qc7 {[%clk 0:02:48]} 12. b4 {[%clk 0:02:41.9]} 12... a5
{[%clk 0:02:47.9]} 13. Nd2 {[%clk 0:02:16.2]} 13... Bxc3 {[%clk 0:02:46.7]} 14.
Rc1 {[%clk 0:02:10.6]} 14... axb4 {[%clk 0:02:46.5]} 15. Nb1 {[%clk 0:02:06.8]}
15... Qxc5 {[%clk 0:02:45.5]} 16. Qb3 {[%clk 0:01:58.2]} 16... Bxe2 {[%clk
0:02:45]} 17. Nxc3 {[%clk 0:01:56.1]} 17... bxc3 {[%clk 0:02:34.1]} 18. Rxc3
{[%clk 0:01:54.2]} 18... Bc4 {[%clk 0:02:34.8]} 19. Qxb7 {[%clk 0:01:53.3]}
19... Qd6 {[%clk 0:02:12.3]} 20. Rxc4 {[%clk 0:01:39.6]} 20... dxc4 {[%clk
0:02:13.2]} 21. Qxa8 {[%clk 0:01:39.5]} 21... Rxa8 {[%clk 0:02:14]} 22. Bxa8
{[%clk 0:01:39.6]} 22... Qa6 {[%clk 0:02:09.8]} 23. Bf3 {[%clk 0:01:30.5]} 23...
Qxa2 {[%clk 0:02:09.6]} 24. Rc1 {[%clk 0:01:29]} 24... g5 {[%clk 0:01:59.1]} 25.
Be4 {[%clk 0:01:24.9]} 25... h5 {[%clk 0:01:54.6]} 0-1

[Event "Late-Titled-Tuesday-Blitz-October-10-2023"]
[Site "Chess.com"]
[Date "2023.10.10"]
[Round "1"]
[White "djano"]
[Black "Sulthankan"]
[Result "1-0"]
[WhiteElo "2672"]
[BlackElo "2345"]
[TimeControl "180+1"]
[EndTime "14:03:57 PDT"]
[Termination "djano won by resignation"]

1. e4 {[%clk 0:03:00.9]} 1... c5 {[%clk 0:03:00]} 2. Nc3 {[%clk 0:03:00.2]} 2...
a6 {[%clk 0:02:59.5]} 3. g3 {[%clk 0:02:57.8]} 3... b5 {[%clk 0:02:59.3]} 4. Bg2
{[%clk 0:02:57.9]} 4... Bb7 {[%clk 0:03:00]} 5. d3 {[%clk 0:02:58.6]} 5... e6
{[%clk 0:03:00.1]} 6. Nh3 {[%clk 0:02:56.8]} 6... Be7 {[%clk 0:02:55.5]} 7. O-O
{[%clk 0:02:53.7]} 7... d5 {[%clk 0:02:56]} 8. exd5 {[%clk 0:02:45.8]} 8... exd5
{[%clk 0:02:56]} 9. Nf4 {[%clk 0:02:41.5]} 9... Nf6 {[%clk 0:02:55.9]} 10. Qf3
{[%clk 0:02:41.7]} 10... O-O {[%clk 0:02:43.9]} 11. Ncxd5 {[%clk 0:02:39.4]}
11... Nxd5 {[%clk 0:02:43]} 12. Nxd5 {[%clk 0:02:40.3]} 12... Bxd5 {[%clk
0:02:31.2]} 13. Qxd5 {[%clk 0:02:41.2]} 13... Ra7 {[%clk 0:02:27.6]} 14. Re1
{[%clk 0:02:31.3]} 14... Rd7 {[%clk 0:02:19.9]} 15. Qf5 {[%clk 0:02:24.4]} 15...
g6 {[%clk 0:01:57.4]} 16. Qe5 {[%clk 0:02:07.8]} 16... Bd6 {[%clk 0:01:54.8]}
17. Qc3 {[%clk 0:02:07.2]} 17... Qc7 {[%clk 0:01:32.3]} 18. Bh6 {[%clk
0:02:03.8]} 18... f6 {[%clk 0:01:05.7]} 19. Bxf8 {[%clk 0:02:00.8]} 19... Bxf8
{[%clk 0:01:06.6]} 20. Qxf6 {[%clk 0:01:57.7]} 1-0

[Event "Late-Titled-Tuesday-Blitz-October-10-2023"]
[Site "Chess.com"]
[Date "2023.10.10"]
[Round "1"]
[White "Zq1"]
[Black "Elbebiber"]
[Result "1-0"]
[WhiteElo "2550"]
[BlackElo "2147"]
[TimeControl "180+1"]
[EndTime "14:03:58 PDT"]
[Termination "Zq1 won by resignation"]

1. d4 {[%clk 0:02:58.7]} 1... d5 {[%clk 0:02:58.4]} 2. Nf3 {[%clk 0:02:56.3]}
2... c6 {[%clk 0:02:54.5]} 3. Bf4 {[%clk 0:02:54.4]} 3... Bf5 {[%clk 0:02:48.9]}
4. e3 {[%clk 0:02:53.9]} 4... e6 {[%clk 0:02:47.9]} 5. Be2 {[%clk 0:02:50.4]}
5... Nf6 {[%clk 0:02:43.4]} 6. O-O {[%clk 0:02:47.3]} 6... Be7 {[%clk
0:02:38.3]} 7. c4 {[%clk 0:02:46.2]} 7... O-O {[%clk 0:02:36.6]} 8. Qb3 {[%clk
0:02:45.7]} 8... Qb6 {[%clk 0:02:33.1]} 9. c5 {[%clk 0:02:45.6]} 9... Qxb3
{[%clk 0:02:32.8]} 10. axb3 {[%clk 0:02:45.8]} 10... a6 {[%clk 0:02:30.9]} 11.
b4 {[%clk 0:02:45.7]} 11... Nbd7 {[%clk 0:02:30.4]} 12. h3 {[%clk 0:02:46]}
12... h6 {[%clk 0:02:27.3]} 13. Nc3 {[%clk 0:02:45.9]} 13... Ne4 {[%clk
0:02:20.8]} 14. Ra3 {[%clk 0:02:42.1]} 14... Rfe8 {[%clk 0:02:14.5]} 15. Nxe4
{[%clk 0:02:40.8]} 15... Bxe4 {[%clk 0:02:14]} 16. Nd2 {[%clk 0:02:41.3]} 16...
Bg6 {[%clk 0:02:11]} 17. Nb3 {[%clk 0:02:41]} 17... Bd8 {[%clk 0:01:59.3]} 18.
b5 {[%clk 0:02:27.4]} 18... a5 {[%clk 0:01:21.6]} 19. Rfa1 {[%clk 0:02:14.4]}
19... Nf6 {[%clk 0:01:14.2]} 20. Nxa5 {[%clk 0:02:08]} 20... Bxa5 {[%clk
0:01:09]} 21. Rxa5 {[%clk 0:02:07]} 21... Rxa5 {[%clk 0:01:08.9]} 22. Rxa5
{[%clk 0:02:06.6]} 22... Ne4 {[%clk 0:01:03.6]} 23. Ra7 {[%clk 0:02:04.3]} 1-0

[Event "Late-Titled-Tuesday-Blitz-October-10-2023"]
[Site "Chess.com"]
[Date "2023.10.10"]
[Round "1"]
[White "Maestro1986"]
[Black "KejJaj"]
[Result "1-0"]
[WhiteElo "2556"]
[BlackElo "2166"]
[TimeControl "180+1"]
[EndTime "14:04:09 PDT"]
[Termination "Maestro1986 won by resignation"]

1. d4 {[%clk 0:02:58.2]} 1... f5 {[%clk 0:02:59.6]} 2. c4 {[%clk 0:02:57.7]}
2... Nf6 {[%clk 0:02:59.9]} 3. Nc3 {[%clk 0:02:58.3]} 3... e6 {[%clk 0:03:00.4]}
4. Nf3 {[%clk 0:02:58.6]} 4... Bb4 {[%clk 0:02:54.2]} 5. Qc2 {[%clk 0:02:58.6]}
5... O-O {[%clk 0:02:52.2]} 6. h3 {[%clk 0:02:56.4]} 6... b6 {[%clk 0:02:50.9]}
7. g4 {[%clk 0:02:53.6]} 7... Ne4 {[%clk 0:02:47.3]} 8. gxf5 {[%clk 0:02:50.3]}
8... exf5 {[%clk 0:02:46.9]} 9. a3 {[%clk 0:02:46.6]} 9... Bxc3+ {[%clk
0:02:44.9]} 10. bxc3 {[%clk 0:02:45.4]} 10... Bb7 {[%clk 0:02:40.8]} 11. Rg1
{[%clk 0:02:43.5]} 11... Nc6 {[%clk 0:02:23.5]} 12. Bf4 {[%clk 0:02:36]} 12...
Ne7 {[%clk 0:02:21.2]} 13. d5 {[%clk 0:02:22]} 13... Ng6 {[%clk 0:02:20.4]} 14.
Be3 {[%clk 0:02:18.4]} 14... d6 {[%clk 0:02:17.6]} 15. Nd4 {[%clk 0:02:16.4]}
15... Qe7 {[%clk 0:02:13.2]} 16. Ne6 {[%clk 0:02:09.1]} 16... Rf7 {[%clk
0:02:13.4]} 17. O-O-O {[%clk 0:02:01.8]} 17... c6 {[%clk 0:02:12.5]} 18. f3
{[%clk 0:02:01.2]} 18... Nc5 {[%clk 0:02:09.5]} 19. Bxc5 {[%clk 0:01:55.8]}
19... bxc5 {[%clk 0:02:09.6]} 20. e4 {[%clk 0:01:56.3]} 20... fxe4 {[%clk
0:02:05.7]} 21. Qxe4 {[%clk 0:01:51.4]} 21... cxd5 {[%clk 0:02:05.7]} 22. cxd5
{[%clk 0:01:51.5]} 22... Rb8 {[%clk 0:02:01.6]} 23. Bd3 {[%clk 0:01:49.7]} 23...
Rf6 {[%clk 0:01:56.7]} 24. h4 {[%clk 0:01:46.3]} 24... Bxd5 {[%clk 0:01:54.8]}
25. Qxd5 {[%clk 0:01:43.7]} 25... Qxe6 {[%clk 0:01:54.7]} 26. Qxe6+ {[%clk
0:01:42.9]} 26... Rxe6 {[%clk 0:01:55.6]} 27. Bc4 {[%clk 0:01:43.7]} 27... Nf4
{[%clk 0:01:48.8]} 28. Rxd6 {[%clk 0:01:41.9]} 28... Re8 {[%clk 0:01:46.6]} 29.
Re1 {[%clk 0:01:40.8]} 29... Nd3+ {[%clk 0:01:46.1]} 30. Rxd3 {[%clk 0:01:39.3]}
30... Kf7 {[%clk 0:01:40.4]} 31. Rde3 {[%clk 0:01:38.1]} 1-0

[Event "Late-Titled-Tuesday-Blitz-October-10-2023"]
[Site "Chess.com"]
[Date "2023.10.10"]
[Round "1"]
[White "iturrizaga"]
[Black "arminmusovic"]
[Result "1-0"]
[WhiteElo "2993"]
[BlackElo "2504"]
[TimeControl "180+1"]
[EndTime "14:04:12 PDT"]
[Termination "iturrizaga won by resignation"]

1. d4 {[%clk 0:03:00.9]} 1... d5 {[%clk 0:02:58.5]} 2. Nf3 {[%clk 0:03:01.3]}
2... Nf6 {[%clk 0:02:58.3]} 3. c4 {[%clk 0:03:02.2]} 3... c5 {[%clk 0:02:58.7]}
4. cxd5 {[%clk 0:03:01.8]} 4... cxd4 {[%clk 0:02:59.2]} 5. Qa4+ {[%clk
0:03:01.4]} 5... Qd7 {[%clk 0:02:59.5]} 6. Qxd4 {[%clk 0:02:57.2]} 6... Qxd5
{[%clk 0:02:59.2]} 7. Nc3 {[%clk 0:02:57.8]} 7... Qxd4 {[%clk 0:02:59.8]} 8.
Nxd4 {[%clk 0:02:58.3]} 8... a6 {[%clk 0:03:00.7]} 9. Bf4 {[%clk 0:02:57.3]}
9... Nbd7 {[%clk 0:03:00.5]} 10. Bg3 {[%clk 0:02:56.9]} 10... e5 {[%clk
0:03:00.8]} 11. Nf5 {[%clk 0:02:56.8]} 11... e4 {[%clk 0:02:48.2]} 12. Nd6+
{[%clk 0:02:52.8]} 12... Bxd6 {[%clk 0:02:46.6]} 13. Bxd6 {[%clk 0:02:53.7]}
13... b5 {[%clk 0:02:46.3]} 14. e3 {[%clk 0:02:49.9]} 14... Bb7 {[%clk
0:02:42.3]} 15. Be2 {[%clk 0:02:48.7]} 15... Rc8 {[%clk 0:02:24.7]} 16. O-O
{[%clk 0:02:47.5]} 16... Nb6 {[%clk 0:02:25.1]} 17. a4 {[%clk 0:02:23.3]} 17...
Nc4 {[%clk 0:02:16.5]} 18. Bb4 {[%clk 0:02:09.9]} 18... Bc6 {[%clk 0:01:37.9]}
19. axb5 {[%clk 0:02:09.3]} 19... axb5 {[%clk 0:01:38.8]} 20. Ra7 {[%clk
0:02:05.1]} 20... Nd7 {[%clk 0:01:31.4]} 21. Rd1 {[%clk 0:01:59.2]} 21... f5
{[%clk 0:01:29.9]} 22. b3 {[%clk 0:01:52.7]} 22... Nce5 {[%clk 0:01:21.6]} 23.
Nxb5 {[%clk 0:01:52.4]} 23... Bxb5 {[%clk 0:01:19.3]} 24. Bxb5 {[%clk
0:01:53.3]} 24... Rb8 {[%clk 0:01:18.9]} 25. Bxd7+ {[%clk 0:01:43.6]} 25... Nxd7
{[%clk 0:01:18.4]} 26. Raxd7 {[%clk 0:01:44.5]} 26... h5 {[%clk 0:01:10.5]} 27.
Re7+ {[%clk 0:01:43.6]} 1-0

[Event "Late-Titled-Tuesday-Blitz-October-10-2023"]
[Site "Chess.com"]
[Date "2023.10.10"]
[Round "1"]
[White "Ramosha"]
[Black "AlexandraBotez"]
[Result "1-0"]
[WhiteElo "2616"]
[BlackElo "2276"]
[TimeControl "180+1"]
[EndTime "14:04:39 PDT"]
[Termination "Ramosha won by resignation"]

1. e4 {[%clk 0:02:01.6]} 1... e6 {[%clk 0:02:57.1]} 2. Nf3 {[%clk 0:02:00.6]}
2... d5 {[%clk 0:02:56.4]} 3. d3 {[%clk 0:02:01.5]} 3... c5 {[%clk 0:02:56.3]}
4. Nbd2 {[%clk 0:01:58.6]} 4... Nc6 {[%clk 0:02:54.7]} 5. g3 {[%clk 0:01:58.5]}
5... Nf6 {[%clk 0:02:53.7]} 6. Bg2 {[%clk 0:01:58.4]} 6... Bd6 {[%clk
0:02:50.4]} 7. O-O {[%clk 0:01:58.7]} 7... O-O {[%clk 0:02:50]} 8. Re1 {[%clk
0:01:59.1]} 8... Qc7 {[%clk 0:02:47.7]} 9. c3 {[%clk 0:01:56.1]} 9... Rb8 {[%clk
0:02:45.5]} 10. Qe2 {[%clk 0:01:56]} 10... Nd7 {[%clk 0:02:42]} 11. d4 {[%clk
0:01:54.8]} 11... cxd4 {[%clk 0:02:41]} 12. cxd4 {[%clk 0:01:55.7]} 12... dxe4
{[%clk 0:02:32.8]} 13. Nxe4 {[%clk 0:01:56.6]} 13... Bb4 {[%clk 0:02:21.3]} 14.
Bf4 {[%clk 0:01:55.3]} 14... e5 {[%clk 0:02:11.6]} 15. dxe5 {[%clk 0:01:53.6]}
15... Bxe1 {[%clk 0:01:53.4]} 16. Rxe1 {[%clk 0:01:54.5]} 16... Qb6 {[%clk
0:01:34.2]} 17. e6 {[%clk 0:01:52.1]} 17... fxe6 {[%clk 0:01:33.8]} 18. Bxb8
{[%clk 0:01:52]} 18... Ndxb8 {[%clk 0:01:32.7]} 19. Neg5 {[%clk 0:01:43.1]}
19... e5 {[%clk 0:01:20.3]} 20. Qc4+ {[%clk 0:01:41.9]} 20... Kh8 {[%clk
0:01:14.5]} 21. Nf7+ {[%clk 0:01:42.1]} 21... Rxf7 {[%clk 0:01:15]} 22. Qxf7
{[%clk 0:01:43]} 22... Qd8 {[%clk 0:01:13.7]} 23. Nxe5 {[%clk 0:01:42.9]} 23...
Nxe5 {[%clk 0:01:13.7]} 24. Rxe5 {[%clk 0:01:43.8]} 24... Qd1+ {[%clk
0:00:57.7]} 25. Bf1 {[%clk 0:01:42.6]} 25... h6 {[%clk 0:00:47.9]} 26. Re8+
{[%clk 0:01:42.3]} 26... Kh7 {[%clk 0:00:48.1]} 27. Rxc8 {[%clk 0:01:43.2]} 1-0

[Event "Late-Titled-Tuesday-Blitz-October-10-2023"]
[Site "Chess.com"]
[Date "2023.10.10"]
[Round "1"]
[White "Byniolus"]
[Black "NLLO777"]
[Result "1-0"]
[WhiteElo "2707"]
[BlackElo "2382"]
[TimeControl "180+1"]
[EndTime "14:04:44 PDT"]
[Termination "Byniolus won by checkmate"]

1. d4 {[%clk 0:03:00.9]} 1... Nf6 {[%clk 0:02:59.7]} 2. Nf3 {[%clk 0:03:01.1]}
2... e6 {[%clk 0:02:58.5]} 3. Bf4 {[%clk 0:03:01.3]} 3... c5 {[%clk 0:02:56.1]}
4. c3 {[%clk 0:03:01.5]} 4... d5 {[%clk 0:02:54.7]} 5. e3 {[%clk 0:03:01.1]}
5... Nc6 {[%clk 0:02:54.6]} 6. Nbd2 {[%clk 0:03:00.9]} 6... Bd6 {[%clk
0:02:50.4]} 7. Bg3 {[%clk 0:03:01.4]} 7... O-O {[%clk 0:02:50.3]} 8. Bd3 {[%clk
0:03:01]} 8... a6 {[%clk 0:02:46.9]} 9. Ne5 {[%clk 0:02:59]} 9... Qc7 {[%clk
0:02:44.2]} 10. f4 {[%clk 0:02:57.2]} 10... b5 {[%clk 0:02:41.2]} 11. a3 {[%clk
0:02:51.7]} 11... Rb8 {[%clk 0:02:40.6]} 12. O-O {[%clk 0:02:50.8]} 12... a5
{[%clk 0:02:40]} 13. Qc2 {[%clk 0:02:39.6]} 13... h6 {[%clk 0:02:35.2]} 14. h3
{[%clk 0:02:28.7]} 14... Bd7 {[%clk 0:02:33.8]} 15. Bh4 {[%clk 0:02:27.8]} 15...
Rfc8 {[%clk 0:02:21.2]} 16. Bxf6 {[%clk 0:01:42.8]} 16... gxf6 {[%clk
0:02:22.1]} 17. Ng4 {[%clk 0:01:40.9]} 17... Kg7 {[%clk 0:02:14.4]} 18. Qd1
{[%clk 0:01:39.1]} 18... f5 {[%clk 0:02:02.3]} 19. Ne5 {[%clk 0:01:37.9]} 19...
Nxe5 {[%clk 0:01:40.7]} 20. fxe5 {[%clk 0:01:35.8]} 20... Be7 {[%clk 0:01:40.9]}
21. g4 {[%clk 0:01:31.1]} 21... fxg4 {[%clk 0:01:18.6]} 22. Qxg4+ {[%clk
0:01:27.2]} 22... Kf8 {[%clk 0:01:14.9]} 23. Rxf7+ {[%clk 0:01:23.9]} 23... Kxf7
{[%clk 0:01:13.9]} 24. Qg6+ {[%clk 0:01:16]} 24... Kf8 {[%clk 0:01:14]} 25. Rf1+
{[%clk 0:01:16.9]} 25... Bf6 {[%clk 0:01:13.7]} 26. Qxf6+ {[%clk 0:01:11.3]}
26... Ke8 {[%clk 0:01:13.9]} 27. Bg6# {[%clk 0:01:11]} 1-0